fUST/lending_fUST_20240721
["ID","MTS","AMOUNT","RATE_DAILY","PERIOD"]
[332805908,1721537450562,-2706.19,0.00013972,2]
[332805909,1721537450571,-173.32072081,0.00013972,2]
[332805910,1721537450581,-500.0,0.00013972,2]
[332805911,1721537450590,-931.1,0.00013972,2]
[332805912,1721537450599,-500.0,0.00013972,2]
[332805913,1721537450609,-500.0,0.00013972,2]
[332805914,1721537450618,-500.0,0.00013972,2]
[332805915,1721537450627,-500.0,0.00013972,2]
[332805916,1721537450636,-500.0,0.00013972,2]
[332805917,1721537450646,-500.0,0.00013972,2]
[332805918,1721537450660,-500.0,0.00013972,2]
[332805919,1721537450670,-500.0,0.00013972,2]
[332805920,1721537450682,-888.28,0.00013972,2]
[332805921,1721537450693,-1146.38,0.00013972,2]
[332805922,1721537450702,-605.69,0.00013972,2]
[332805923,1721537450712,-500.0,0.00013972,2]
[332805924,1721537450721,-500.0,0.00013972,2]
[332805925,1721537450732,-500.0,0.00013972,2]
[332805926,1721537450741,-509.39,0.00013972,2]
[332805927,1721537450751,-500.0,0.00013972,2]
[332805928,1721537450760,-2056.1,0.00013972,2]
[332805929,1721537450770,-500.0,0.00013972,2]
[332805930,1721537450779,-624.2,0.00013972,2]
[332805931,1721537450789,-513.98373387,0.00013972,2]
[332805932,1721537450798,-500.0,0.00013972,2]
[332805933,1721537450807,-758.96,0.00013972,2]
[332805934,1721537450819,-1063.01,0.00013972,2]
[332805935,1721537450828,-500.0,0.00013972,2]
[332805936,1721537450837,-500.0,0.00013972,2]
[332805937,1721537450847,-500.0,0.00013972,2]
[332805938,1721537450856,-564.09,0.00013972,2]
[332805939,1721537450866,-500.0,0.00013972,2]
[332805940,1721537450877,-500.0,0.00013972,2]
[332805941,1721537450886,-500.0,0.00013972,2]
[332805942,1721537450896,-519.39971363,0.00013972,2]
[332805943,1721537450906,-500.0,0.00013972,2]
[332805944,1721537450917,-500.0,0.00013972,2]
[332805945,1721537450930,-500.0,0.00013972,2]
[332805946,1721537450942,-617.71,0.00013972,2]
[332805947,1721537450951,-631.7,0.00013972,2]
[332805948,1721537450963,-806.1,0.00013972,2]
[332805949,1721537450972,-500.0,0.00013972,2]
[332805950,1721537450982,-500.0,0.00013972,2]
[332805951,1721537450991,-500.0,0.00013972,2]
[332805952,1721537451000,-500.0,0.00013972,2]
[332805953,1721537451010,-500.0,0.00013972,2]
[332805954,1721537451020,-500.0,0.00013972,2]
[332805955,1721537451031,-4000.91,0.00013972,2]
[332805956,1721537451042,-526.35927436,0.00013972,2]
[332805957,1721537451054,-500.0,0.00013972,2]
[332805958,1721537451065,-831.67,0.00013972,2]
[332805959,1721537451076,-500.0,0.00013972,2]
[332805960,1721537451087,-558.39,0.00013972,2]
[332805961,1721537451098,-578.55,0.00013972,2]
[332805962,1721537451109,-1486.09,0.00013972,2]
[332805963,1721537451121,-556.72,0.00013972,2]
[332805964,1721537451131,-500.0,0.00013972,2]
[332805965,1721537451142,-1811.52,0.00013972,2]
[332805966,1721537451153,-1120.1,0.00013972,2]
[332805967,1721537451165,-1411.83,0.00013972,2]
[332805968,1721537451177,-500.0,0.00013972,2]
[332805969,1721537451188,-500.0,0.00013972,2]
[332805970,1721537451200,-500.0,0.00013972,2]
[332805971,1721537451211,-512.82091932,0.00013972,2]
[332805972,1721537451223,-533.14,0.00013972,2]
[332805973,1721537451235,-512.99821633,0.00013972,2]
[332805974,1721537451247,-1755.58,0.00013972,2]
[332805975,1721537451258,-473.59674258,0.00013972,2]
[332805976,1721537451268,-614.64,0.00013972,2]
[332805977,1721537451279,-500.0,0.00013972,2]
[332805978,1721537451289,-500.0,0.00013972,2]
[332805979,1721537451299,-631.49,0.00013972,2]
[332805980,1721537451310,-789.16,0.00013972,2]
[332805981,1721537451320,-500.0,0.00013972,2]
[332805982,1721537451331,-1223.88,0.00013972,2]
[332805983,1721537451343,-500.0,0.00013972,2]
[332805984,1721537451354,-500.0,0.00013972,2]
[332805985,1721537451366,-500.0,0.00013972,2]
[332805986,1721537451378,-500.0,0.00013972,2]
[332805987,1721537451388,-613.67,0.00013972,2]
[332805988,1721537451400,-500.0,0.00013972,2]
[332805989,1721537451411,-500.0,0.00013972,2]
[332805990,1721537451421,-500.0,0.00013972,2]
[332805991,1721537451431,-508.57805667,0.00013972,2]
[332805992,1721537451442,-500.0,0.00013972,2]
[332805993,1721537451637,-500.0,0.00013972,2]
[332805994,1721537451654,-718.49,0.00013972,2]
[332805995,1721537451667,-500.0,0.00013972,2]
[332805996,1721537451679,-850.42,0.00013972,2]
[332805997,1721537451691,-500.0,0.00013972,2]
[332805998,1721537451702,-500.0,0.00013972,2]
[332805999,1721537451712,-2621.65,0.00013972,2]
[332806000,1721537451726,-500.0,0.00013972,2]
[332806001,1721537451735,-500.0,0.00013972,2]
[332806002,1721537451745,-500.0,0.00013972,2]
[332806003,1721537451755,-502.02012757,0.00013972,2]
[332806004,1721537451766,-1693.08,0.00013972,2]
[332806005,1721537451775,-500.0,0.00013972,2]
[332806006,1721537451784,-500.0,0.00013972,2]
[332806007,1721537451794,-500.0,0.00013972,2]
[332806008,1721537451805,-524.72,0.00013972,2]
[332806009,1721537451814,-500.0,0.00013972,2]
[332806010,1721537451824,-1686.5,0.00013972,2]
[332806011,1721537451835,-500.0,0.00013972,2]
[332806012,1721537451845,-603.44,0.00013972,2]
[332806013,1721537451855,-175.382872,0.00013972,2]
[332806014,1721537451864,-500.0,0.00013972,2]
[332806015,1721537451874,-500.0,0.00013972,2]
[332806016,1721537451884,-574.15,0.00013972,2]
[332806017,1721537451894,-500.0,0.00013972,2]
[332806018,1721537451903,-500.0,0.00013972,2]
[332806019,1721537451912,-844.25,0.00013972,2]
[332806020,1721537451922,-500.0,0.00013972,2]
[332806021,1721537451933,-500.0,0.00013972,2]
[332806022,1721537451943,-209.72,0.00013972,2]
[332806023,1721537451953,-1247.71,0.00013972,2]
[332806024,1721537451963,-1714.81,0.00013972,2]
[332806025,1721537451973,-500.0,0.00013972,2]
[332806026,1721537451982,-1962.59,0.00013972,2]
[332806027,1721537451991,-494.30675282,0.00013972,2]
[332806028,1721537452002,-1976.44,0.00013972,2]
[332806029,1721537452011,-417.13444224,0.00013972,2]
[332806030,1721537452020,-500.0,0.00013972,2]
[332806031,1721537452030,-500.0,0.00013972,2]
[332806032,1721537452039,-500.0,0.00013972,2]
[332806033,1721537452048,-858.14,0.00013972,2]
[332806034,1721537452058,-500.0,0.00013972,2]
[332806035,1721537452067,-1554.0,0.00013972,2]
[332806036,1721537452076,-500.0,0.00013972,2]
[332806037,1721537452086,-1624.67,0.00013972,2]
[332806038,1721537452095,-500.0,0.00013972,2]
[332806039,1721537452104,-500.0,0.00013972,2]
[332806040,1721537452114,-500.0,0.00013972,2]
[332806041,1721537452125,-500.0,0.00013972,2]
[332806042,1721537452135,-503.71144622,0.00013972,2]
[332806043,1721537452144,-500.0,0.00013972,2]
[332806044,1721537452154,-668.01,0.00013972,2]
[332806045,1721537452163,-500.0,0.00013972,2]
[332806046,1721537452172,-846.94,0.00013972,2]
[332806047,1721537452183,-525.67,0.00013972,2]
[332806048,1721537452192,-500.0,0.00013972,2]
[332806049,1721537452202,-763.95,0.00013972,2]
[332806050,1721537452211,-500.0,0.00013972,2]
[332806051,1721537452221,-869.65,0.00013972,2]
[332806052,1721537452230,-500.0,0.00013972,2]
[332806053,1721537452239,-1097.27,0.00013972,2]
[332806054,1721537452248,-151.0,0.00013972,2]
[332806055,1721537452258,-151.0,0.00013972,2]
[332806056,1721537452267,-151.0,0.00013972,2]
[332806057,1721537452278,-503.15214971,0.00013972,2]
[332806058,1721537452289,-151.0,0.00013972,2]
[332806059,1721537452299,-500.0,0.00013972,2]
[332806060,1721537452308,-189.30105114,0.00013972,2]
[332806061,1721537452319,-500.0,0.00013972,2]
[332806062,1721537452329,-1587.64,0.00013972,2]
[332806063,1721537452340,-735.22,0.00013972,2]
[332806064,1721537452350,-500.0,0.00013972,2]
[332806065,1721537452361,-989.42,0.00013972,2]
[332806066,1721537452371,-500.0,0.00013972,2]
[332806067,1721537452381,-500.0,0.00013972,2]
[332806068,1721537452390,-3609.17,0.00013972,2]
[332806069,1721537452399,-861.29,0.00013972,2]
[332806070,1721537452409,-500.0,0.00013972,2]
[332806071,1721537452419,-1125.95,0.00013972,2]
[332806072,1721537452428,-512.34617721,0.00013972,2]
[332806073,1721537452438,-7203.23,0.00013972,2]
[332806074,1721537452447,-1357.46,0.00013972,2]
[332806075,1721537452456,-502.11194935,0.00013972,2]
[332806076,1721537452466,-500.0,0.00013972,2]
[332806077,1721537452475,-500.0,0.00013972,2]
[332806078,1721537452484,-501.95006325,0.00013972,2]
[332806079,1721537452493,-166.46989288,0.00013972,2]
[332806080,1721537452502,-837.58,0.00013972,2]
[332806081,1721537452512,-500.0,0.00013972,2]
[332806082,1721537452521,-500.0,0.00013972,2]
[332806083,1721537452531,-500.0,0.00013972,2]
[332806084,1721537452540,-4153.2,0.00013972,2]
[332806085,1721537452549,-500.0,0.00013972,2]
[332806086,1721537452559,-1836.33,0.00013972,2]
[332806087,1721537452568,-622.97,0.00013972,2]
[332806088,1721537452577,-547.59,0.00013972,2]
[332806089,1721537452586,-1219.61,0.00013972,2]
[332806090,1721537452595,-2021.04,0.00013972,2]
[332806091,1721537452605,-1055.7,0.00013972,2]
[332806092,1721537452614,-166.55481236,0.00013972,2]
[332806093,1721537452623,-685.29,0.00013972,2]
[332806094,1721537452633,-915.58,0.00013972,2]
[332806095,1721537452644,-628.06,0.00013972,2]
[332806096,1721537452656,-1988.62,0.00013972,2]
[332806097,1721537452665,-741.1,0.00013972,2]
[332806098,1721537452676,-5625.7,0.00013972,2]
[332806099,1721537452687,-500.0,0.00013972,2]
[332806100,1721537452697,-500.0,0.00013972,2]
[332806101,1721537452706,-500.0,0.00013972,2]
[332806102,1721537452716,-672.79,0.00013972,2]
[332806103,1721537452725,-764.43,0.00013972,2]
[332806104,1721537452735,-500.0,0.00013972,2]
[332806105,1721537452744,-523.66,0.00013972,2]
[332806106,1721537452753,-657.63,0.00013972,2]
[332806107,1721537452762,-565.48950967,0.00013972,2]
[332806108,1721537452771,-500.0,0.00013972,2]
[332806109,1721537452780,-500.0,0.00013972,2]
[332806110,1721537452790,-2282.34,0.00013972,2]
[332806111,1721537452799,-548.9,0.00013972,2]
[332806112,1721537452808,-500.0,0.00013972,2]
[332806113,1721537452817,-500.0,0.00013972,2]
[332806114,1721537452827,-3122.49,0.00013972,2]
[332806115,1721537452837,-500.0,0.00013972,2]
[332806116,1721537452849,-574.71,0.00013972,2]
[332806117,1721537452860,-500.0,0.00013972,2]
[332806118,1721537452872,-1191.93,0.00013972,2]
[332806119,1721537452883,-500.0,0.00013972,2]
[332806120,1721537452894,-1714.2,0.00013972,2]
[332806121,1721537452906,-500.0,0.00013972,2]
[332806122,1721537452917,-500.0,0.00013972,2]
[332806123,1721537452927,-646.26,0.00013972,2]
[332806124,1721537452940,-780.96,0.00013972,2]
[332806125,1721537452949,-383.17242545,0.00013972,2]
[332806126,1721537453216,-116.82757455,0.00013972,2]
[332806127,1721537453226,-500.0,0.00013972,2]
[332806128,1721537453236,-1082.03,0.00013972,2]
[332806129,1721537453245,-872.41,0.00013972,2]
[332806130,1721537453254,-572.28,0.00013972,2]
[332806131,1721537453264,-621.19,0.00013972,2]
[332806132,1721537453272,-2312.97908068,0.00013972,2]
[332806133,1721537453284,-579.9063537,0.00013972,2]
[332806134,1721537453295,-612.88483125,0.00013972,2]
[332806135,1721537453733,-500.0,0.00013698,2]
[332806136,1721537453742,-271.99040239,0.00013972,2]
[332806144,1721538411143,-269.06248355,9.999e-05,2]
[332806145,1721538440086,-754.76496865,9.999e-05,2]
[332806146,1721538440107,-980.82290703,9.999e-05,2]
[332806147,1721538440129,-162.30662768,9.999e-05,2]
[332806148,1721538440381,-941.49835413,9.999e-05,2]
[332806149,1721538440413,-155.33050599,9.999e-05,2]
[332806150,1721538440436,-251.95958056,9.999e-05,2]
[332806151,1721538440458,-304.3160969,9.999e-05,2]
[332806152,1721538440480,-542.43428844,9.999e-05,2]
[332806153,1721538440504,-566.0727566,9.999e-05,2]
[332806154,1721538440526,-156.08968571,9.999e-05,2]
[332806155,1721538440547,-567.88989652,9.999e-05,2]
[332806156,1721538440568,-201.37891871,9.999e-05,2]
[332806157,1721538440590,-154.74467129,9.999e-05,2]
[332806158,1721538440611,-201.99905013,9.999e-05,2]
[332806159,1721538440632,-600.13398143,9.999e-05,2]
[332806160,1721538440653,-240.51585871,9.999e-05,2]
[332806161,1721538440673,-154.74467129,9.999e-05,2]
[332806162,1721538440694,-196.15176283,9.999e-05,2]
[332806163,1721538440715,-159.93320028,9.999e-05,2]
[332806164,1721538440737,-392.37099697,9.999e-05,2]
[332806165,1721538440757,-155.66508567,9.999e-05,2]
[332806166,1721538440778,-156.62960029,9.999e-05,2]
[332806167,1721538440798,-177.66051837,9.999e-05,2]
[332806168,1721538440819,-154.74467129,9.999e-05,2]
[332806169,1721538440840,-404.26765741,9.999e-05,2]
[332806170,1721538440861,-287.42676554,0.0001,2]
[332806171,1721538440884,-17129.10735881,0.00012414,2]
[332806201,1721538632506,-196.69288893,9.999e-05,2]
[332806202,1721538632516,-154.8064888,9.999e-05,2]
[332806203,1721538632526,-155.04731187,9.999e-05,2]
[332806204,1721538632535,-472.43520923,9.999e-05,2]
[332806205,1721538632544,-154.74467129,9.999e-05,2]
[332806206,1721538632554,-155.09397328,9.999e-05,2]
[332806207,1721538632563,-51.24483432,9.999e-05,2]
[332806233,1721538638547,-491.18945412,9.999e-05,2]
[332806234,1721538638557,-984.41090085,9.999e-05,2]
[332806237,1721538638567,-478.32496365,9.999e-05,2]
[332806239,1721538638577,-240.51585871,9.999e-05,2]
[332806241,1721538638588,-600.13398143,9.999e-05,2]
[332806243,1721538638599,-156.56762567,9.999e-05,2]
[332806245,1721538638609,-392.37099697,9.999e-05,2]
[332806247,1721538638619,-1023.8274522,9.999e-05,2]
[332806249,1721538638628,-162.87421769,9.999e-05,2]
[332806251,1721538638639,-567.88989652,9.999e-05,2]
[332806253,1721538638649,-287.42676554,0.0001,2]
[332806255,1721538638659,-1678.0656644,0.00012414,2]
[332806257,1721538638668,-4193.43536724,0.00012414,2]
[332806260,1721538638688,-15247.14015203,0.00012414,2]
[332806262,1721538638698,-154.74467129,0.00012414,2]
[332806264,1721538638707,-202.3113304,0.00012414,2]
[332806265,1721538638716,-1628.96768289,0.00012414,2]
[332806267,1721538638726,-7770.89264119,0.00012414,2]
[332806269,1721538638735,-187.5,0.00012507,2]
[332806271,1721538638745,-187.5,0.00012724,2]
[332806273,1721538638754,-187.5,0.00012942,2]
[332806275,1721538638764,-187.5,0.00013159,2]
[332806277,1721538638773,-620.00000076,0.00013328,2]
[332806279,1721538638783,-415.4016494,0.00013485,2]
[332806281,1721538638793,-206.5817573,0.00013485,2]
[332806282,1721538638803,-1122.53091539,0.00013598,2]
[332806284,1721538638812,-1122.53091537,0.00013667,2]
[332806286,1721538638822,-8488.38170389,0.00013688,2]
[332806288,1721538638832,-771.67106399,0.00013689,2]
[332806289,1721538638842,-500.0,0.00013698,2]
[332806290,1721538638851,-500.0,0.00013698,2]
[332806292,1721538638861,-500.0,0.00013698,2]
[332806294,1721538638872,-500.0,0.00013698,2]
[332806295,1721538638883,-519.0532503,0.00013698,2]
[332806296,1721538638893,-502.80562634,0.00013698,2]
[332806297,1721538638902,-500.0,0.00013698,2]
[332806298,1721538638911,-506.25486992,0.00013698,2]
[332806299,1721538638922,-2337.45,0.00013698,2]
[332806300,1721538638931,-500.0,0.00013698,2]
[332806301,1721538638941,-892.3,0.00013698,2]
[332806302,1721538638951,-500.0,0.00013698,2]
[332806303,1721538638961,-500.0,0.00013698,2]
[332806304,1721538638971,-500.0,0.00013698,2]
[332806305,1721538638981,-500.0,0.00013698,2]
[332806306,1721538638991,-500.0,0.00013698,2]
[332806307,1721538639000,-500.0,0.00013698,2]
[332806308,1721538639010,-500.0,0.00013698,2]
[332806309,1721538639020,-500.0,0.00013698,2]
[332806310,1721538639030,-500.0,0.00013698,2]
[332806311,1721538639039,-500.0,0.00013698,2]
[332806312,1721538639050,-500.0,0.00013698,2]
[332806313,1721538639060,-500.0,0.00013698,2]
[332806314,1721538639069,-598.19,0.00013698,2]
[332806315,1721538639079,-500.0,0.00013698,2]
[332806316,1721538639088,-500.0,0.00013698,2]
[332806317,1721538639098,-500.0,0.00013698,2]
[332806318,1721538639110,-504.07455151,0.00013698,2]
[332806319,1721538639120,-500.0,0.00013698,2]
[332806320,1721538639129,-500.0,0.00013698,2]
[332806321,1721538639140,-587.41468197,0.00013698,2]
[332806322,1721538639150,-500.0,0.00013698,2]
[332806323,1721538639160,-500.0,0.00013698,2]
[332806324,1721538639169,-173.32072081,0.00013698,2]
[332806325,1721538639179,-500.0,0.00013698,2]
[332806326,1721538639188,-500.0,0.00013698,2]
[332806327,1721538639198,-500.0,0.00013698,2]
[332806328,1721538639208,-500.0,0.00013698,2]
[332806329,1721538639218,-500.0,0.00013698,2]
[332806330,1721538639227,-526.35927436,0.00013698,2]
[332806331,1721538639237,-535.12,0.00013698,2]
[332806332,1721538639246,-1073.43,0.00013698,2]
[332806333,1721538639256,-500.0,0.00013698,2]
[332806334,1721538639265,-500.0,0.00013698,2]
[332806335,1721538639274,-512.99821633,0.00013698,2]
[332806336,1721538639284,-500.0,0.00013698,2]
[332806337,1721538639293,-473.59674258,0.00013698,2]
[332806338,1721538639303,-500.0,0.00013698,2]
[332806339,1721538639312,-588.1,0.00013698,2]
[332806340,1721538639322,-500.0,0.00013698,2]
[332806341,1721538639332,-500.0,0.00013698,2]
[332806342,1721538639341,-500.0,0.00013698,2]
[332806343,1721538639351,-500.0,0.00013698,2]
[332806344,1721538639361,-688.56,0.00013698,2]
[332806345,1721538639371,-500.0,0.00013698,2]
[332806346,1721538639380,-605.38,0.00013698,2]
[332806347,1721538639393,-500.0,0.00013698,2]
[332806348,1721538639404,-500.0,0.00013698,2]
[332806349,1721538639414,-500.0,0.00013698,2]
[332806350,1721538639424,-1353.0,0.00013698,2]
[332806351,1721538639435,-605.18,0.00013698,2]
[332806352,1721538639445,-1686.5,0.00013698,2]
[332806353,1721538639454,-603.44,0.00013698,2]
[332806354,1721538639465,-507.09727474,0.00013698,2]
[332806355,1721538639475,-500.0,0.00013698,2]
[332806356,1721538639484,-500.0,0.00013698,2]
[332806357,1721538639494,-517.81637955,0.00013698,2]
[332806358,1721538639504,-858.14,0.00013698,2]
[332806359,1721538639514,-343.29745174,0.00013698,2]
[332806360,1721538639523,-274.77327132,0.00013698,2]
[332806361,1721538639535,-500.0,0.00013698,2]
[332806362,1721538639544,-500.0,0.00013698,2]
[332806363,1721538639554,-500.0,0.00013698,2]
[332806364,1721538639564,-500.0,0.00013698,2]
[332806365,1721538639573,-500.0,0.00013698,2]
[332806366,1721538639584,-500.0,0.00013698,2]
[332806367,1721538639593,-500.0,0.00013698,2]
[332806368,1721538639603,-500.0,0.00013698,2]
[332806369,1721538639612,-291.18737094,0.00013698,2]
[332806370,1721538639622,-500.0,0.00013698,2]
[332806371,1721538639631,-500.0,0.00013698,2]
[332806372,1721538639642,-457.32546745,0.00013698,2]
[332806373,1721538639652,-500.0,0.00013698,2]
[332806374,1721538639661,-500.0,0.00013698,2]
[332806375,1721538639670,-500.0,0.00013698,2]
[332806376,1721538639679,-846.94,0.00013698,2]
[332806377,1721538639689,-500.0,0.00013698,2]
[332806378,1721538639699,-500.0,0.00013698,2]
[332806379,1721538639708,-500.0,0.00013698,2]
[332806380,1721538639718,-500.0,0.00013698,2]
[332806381,1721538639728,-500.0,0.00013698,2]
[332806382,1721538639738,-310.81795827,0.00013698,2]
[332806383,1721538639748,-502.75342232,0.00013698,2]
[332806384,1721538639757,-505.38131075,0.00013698,2]
[332806385,1721538639767,-500.0,0.00013698,2]
[332806386,1721538639776,-500.0,0.00013698,2]
[332806387,1721538639786,-500.0,0.00013698,2]
[332806388,1721538639796,-500.0,0.00013698,2]
[332806389,1721538639806,-500.0,0.00013698,2]
[332806390,1721538639816,-191.97913078,0.00013698,2]
[332806391,1721538639825,-500.0,0.00013698,2]
[332806392,1721538639835,-500.0,0.00013698,2]
[332806393,1721538639844,-595.28,0.00013698,2]
[332806394,1721538639853,-500.0,0.00013698,2]
[332806395,1721538639863,-861.29,0.00013698,2]
[332806396,1721538639873,-500.0,0.00013698,2]
[332806397,1721538639884,-548.5574355,0.00013698,2]
[332806398,1721538639896,-549.44249612,0.00013698,2]
[332806399,1721538639905,-869.65,0.00013698,2]
[332806400,1721538639914,-500.0,0.00013698,2]
[332806401,1721538639928,-1411.54,0.00013698,2]
[332806403,1721538639937,-500.0,0.00013698,2]
[332806405,1721538639948,-169.1445557,0.00013698,2]
[332806406,1721538639958,-500.0,0.00013698,2]
[332806407,1721538639967,-500.0,0.00013698,2]
[332806408,1721538639976,-500.0,0.00013698,2]
[332806409,1721538639986,-500.0,0.00013698,2]
[332806410,1721538639996,-500.6716079,0.00013698,2]
[332806411,1721538640006,-2593.43,0.00013698,2]
[332806412,1721538640015,-509.5921109,0.00013698,2]
[332806413,1721538640025,-500.0,0.00013698,2]
[332806414,1721538640035,-744.63,0.00013698,2]
[332806415,1721538640045,-735.22,0.00013698,2]
[332806416,1721538640055,-500.0,0.00013698,2]
[332806418,1721538640064,-738.56,0.00013698,2]
[332806420,1721538640073,-2637.9,0.00013698,2]
[332806421,1721538640083,-502.00479006,0.00013698,2]
[332806423,1721538640092,-509.85901008,0.00013698,2]
[332806424,1721538640102,-500.0,0.00013698,2]
[332806425,1721538640111,-949.06,0.00013698,2]
[332806426,1721538640120,-573.92873852,0.00013698,2]
[332806428,1721538640129,-515.62998071,0.00013698,2]
[332806431,1721538640141,-851.27,0.00013698,2]
[332806433,1721538640150,-500.0,0.00013698,2]
[332806436,1721538640159,-806.1,0.00013698,2]
[332806439,1721538640169,-500.0,0.00013698,2]
[332806442,1721538640178,-741.1,0.00013698,2]
[332806445,1721538640188,-500.0,0.00013698,2]
[332806448,1721538640198,-758.96,0.00013698,2]
[332806451,1721538640207,-500.0,0.00013698,2]
[332806454,1721538640216,-500.0,0.00013698,2]
[332806457,1721538640225,-500.0,0.00013698,2]
[332806461,1721538640234,-500.0,0.00013698,2]
[332806466,1721538640245,-500.0,0.00013698,2]
[332806470,1721538640254,-500.0,0.00013698,2]
[332806473,1721538640264,-500.0,0.00013698,2]
[332806476,1721538640273,-500.0,0.00013698,2]
[332806478,1721538640283,-500.0,0.00013698,2]
[332806480,1721538640293,-500.0,0.00013698,2]
[332806483,1721538640302,-500.0,0.00013698,2]
[332806486,1721538640312,-500.0,0.00013698,2]
[332806487,1721538640321,-500.0,0.00013698,2]
[332806489,1721538640331,-1098.61,0.00013698,2]
[332806491,1721538640340,-500.0,0.00013698,2]
[332806493,1721538640349,-500.0,0.00013698,2]
[332806495,1721538640359,-500.0,0.00013698,2]
[332806497,1721538640369,-501.44774616,0.00013698,2]
[332806499,1721538640378,-501.53767902,0.00013698,2]
[332806501,1721538640389,-503.48450541,0.00013698,2]
[332806503,1721538640399,-605.69,0.00013698,2]
[332806505,1721538640408,-500.0,0.00013698,2]
[332806507,1721538640418,-500.0,0.00013698,2]
[332806509,1721538640427,-500.0,0.00013698,2]
[332806511,1721538640437,-617.71,0.00013698,2]
[332806513,1721538640446,-501.2016491,0.00013698,2]
[332806515,1721538640456,-500.0,0.00013698,2]
[332806517,1721538640466,-500.0,0.00013698,2]
[332806519,1721538640476,-622.97,0.00013698,2]
[332806521,1721538640486,-504.08045759,0.00013698,2]
[332806523,1721538640495,-2056.1,0.00013698,2]
[332806525,1721538640504,-1063.01,0.00013698,2]
[332806527,1721538640515,-547.59,0.00013698,2]
[332806529,1721538640525,-500.0,0.00013698,2]
[332806531,1721538640534,-500.0,0.00013698,2]
[332806533,1721538640544,-500.0,0.00013698,2]
[332806535,1721538640553,-500.0,0.00013698,2]
[332806537,1721538640563,-500.0,0.00013698,2]
[332806539,1721538640573,-500.0,0.00013698,2]
[332806541,1721538640582,-500.0,0.00013698,2]
[332806543,1721538640591,-500.0,0.00013698,2]
[332806544,1721538640601,-500.0,0.00013698,2]
[332806546,1721538640611,-503.29603639,0.00013698,2]
[332806549,1721538640620,-547.13910122,0.00013698,2]
[332806551,1721538640629,-500.0,0.00013698,2]
[332806552,1721538640639,-500.0,0.00013698,2]
[332806554,1721538640648,-500.0,0.00013698,2]
[332806556,1721538640657,-500.0,0.00013698,2]
[332806558,1721538640667,-500.0,0.00013698,2]
[332806560,1721538640676,-500.0,0.00013698,2]
[332806562,1721538640685,-500.0,0.00013698,2]
[332806564,1721538640695,-500.0,0.00013698,2]
[332806566,1721538640704,-500.0,0.00013698,2]
[332806568,1721538640713,-500.0,0.00013698,2]
[332806570,1721538640722,-500.0,0.00013698,2]
[332806572,1721538640731,-500.0,0.00013698,2]
[332806574,1721538640741,-500.0,0.00013698,2]
[332806576,1721538640751,-500.0,0.00013698,2]
[332806578,1721538640759,-504.47672826,0.00013698,2]
[332806580,1721538640769,-533.14,0.00013698,2]
[332806582,1721538640778,-500.0,0.00013698,2]
[332806584,1721538640787,-500.0,0.00013698,2]
[332806586,1721538640797,-500.0,0.00013698,2]
[332806588,1721538640806,-500.0,0.00013698,2]
[332806590,1721538640815,-523.66,0.00013698,2]
[332806592,1721538640824,-556.72,0.00013698,2]
[332806594,1721538640833,-518.81684462,0.00013698,2]
[332806596,1721538640843,-4000.91,0.00013698,2]